[Event "New York Summer GM-B 2022"]
[Site "New York"]
[Date "2022.07.09"]
[Round "3.5"]
[White "Paragua, Mark"]
[Black "Tiglon, Bryce"]
[Result "0-1"]
[ECO "D00"]
[WhiteElo "2461"]
[BlackElo "2391"]
[Annotator "RC"]
[PlyCount "128"]
[EventDate "2022.07.08"]
[EventType "tourn"]
[EventCountry "USA"]
[SourceTitle "playchess.com"]
[Source "ChessBase"]
[SourceQuality "1"]
[TimeControl "5400+30"]

1. d4 {[%emt 0:05:40]} Nf6 {[%emt 0:00:16]} 2. Bg5 {[%emt 0:00:58]} d5 {[%emt 0:00:08]} 3. Bxf6 {[%emt 0:00:11]} gxf6 {[%emt 0:00:02]} 4. e3 {[%emt 0:00:14]} c5 {[%emt 0:00:07]} 5. dxc5 {[%emt 0:01:36]} Nc6 {[%emt 0:00:57]} 6. Nf3 {[%emt 0:02:03]} e5 {[%emt 0:08:18]} 7. c4 {[%emt 0:28:40]} d4 {[%emt 0:12:48]} 8. exd4 {[%emt 0:00:06]} e4 {[%emt 0:01:34]} 9. Nfd2 {[%emt 0:01:34]} Qxd4 {[%emt 0:05:08]} 10. Nc3 {[%emt 0:02:20]} f5 {[%emt 0:04:26]} 11. Nb3 {[%emt 0:02:10]} Qe5 {[%emt 0:01:18]} 12. Qd2 {[%emt 0:01:00]} Be6 {[%emt 0:03:49]} 13. O-O-O {[%emt 0:03:18]} Rd8 {[%emt 0:12:46]} 14. Nd5 {[%emt 0:00:21]} Bg7 {[%emt 0:03:11]} 15. f4 {[%emt 0:01:26]} Qb8 {[%emt 0:01:52]} 16. Qe3 {[%emt 0:07:25]} a5 {[%emt 0:04:40]} 17. a4 {[%emt 0:27:08]} Nb4 {[%emt 0:15:47]} 18. Be2 {[%emt 0:11:43]} Bxd5 {[%emt 0:04:51]} 19. cxd5 {[%emt 0:00:02]} Nxd5 {[%emt 0:00:08]} 20. Bb5+ {[%emt 0:01:48]} Ke7 {[%emt 0:01:36]} 21. Qg3 {[%emt 0:00:03]} Bf6 {[%emt 0:00:09]} 22. Nxa5 {[%emt 0:01:05]} Qc7 {[%emt 0:03:43]} 23. Nb3 {[%emt 0:00:02]} Nxf4 {[%emt 0:00:06]} 24. Qf2 {[%emt 0:00:56]} Qe5 {[%emt 0:00:47]} 25. g3 {[%emt 0:00:23]} Ne6 {[%emt 0:01:20]} 26. Qc2 {[%emt 0:00:04]} h5 {[%emt 0:01:07]} 27. Rhe1 {[%emt 0:00:22]} h4 {[%emt 0:00:20]} 28. Rxd8 {[%emt 0:01:21]} Rxd8 {[%emt 0:00:11]} 29. g4 {[%emt 0:00:23]} Qf4+ {[%emt 0:02:40]} 30. Kb1 {[%emt 0:00:01]} Qxg4 {[%emt 0:00:07]} 31. c6 {[%emt 0:00:15]} bxc6 {[%emt 0:00:15]} 32. Bxc6 {[%emt 0:00:01]} e3 {[%emt 0:01:55]} 33. a5 {[%emt 0:01:23]} f4 {[%emt 0:00:01]} 34. a6 {[%emt 0:00:23]} f3 {[%emt 0:00:22]} 35. Bb5 {[%emt 0:01:03]} Qb4 {[%emt 0:01:29]} 36. Rxe3 {[%emt 0:00:04]} Qxb5 {[%emt 0:00:12]} 37. Rxf3 {[%emt 0:00:03]} Qxa6 {[%emt 0:00:21]} 38. Qf5 {[%emt 0:01:16]} Rd1+ {[%emt 0:04:00]} 39. Nc1 {[%emt 0:00:01]} Rxc1+ {[%emt 0:00:09]} 40. Kxc1 {[%emt 0:00:02]} Qa1+ {[%emt 0:00:09]} 41. Kd2 {[%emt 0:00:13]} Qxb2+ {[%emt 0:00:39]} 42. Ke1 {[%emt 0:00:17]} Qc1+ {[%emt 0:03:38]} 43. Kf2 {[%emt 0:00:04]} Bd4+ {[%emt 0:00:21]} 44. Ke2 {[%emt 0:00:11]} Qb2+ {[%emt 0:00:57]} 45. Kd1 {[%emt 0:00:32]} Qxh2 {[%emt 0:01:33]} 46. Qxf7+ {[%emt 0:00:01]} Kd6 {[%emt 0:00:06]} 47. Qf5 {[%emt 0:00:29]} Qg1+ {[%emt 0:00:19]} 48. Kd2 {[%emt 0:02:20]} Qg2+ {[%emt 0:00:21]} 49. Kd1 {[%emt 0:00:04]} Qg1+ {[%emt 0:01:57]} 50. Kd2 {[%emt 0:00:14]} Qh2+ {[%emt 0:00:05]} 51. Kd1 {[%emt 0:00:16]} Qe5 {[%emt 0:00:40]} 52. Qxe5+ {[%emt 0:02:15]} Kxe5 {[%emt 0:00:20]} 53. Rh3 {[%emt 0:00:02]} Bf2 {[%emt 0:00:12]} 54. Rh2 {[%emt 0:01:01]} Bg3 {[%emt 0:01:04]} 55. Ra2 {[%emt 0:00:34]} Nf4 {[%emt 0:00:38]} 56. Kd2 {[%emt 0:00:15]} Bf2 {[%emt 0:00:29]} 57. Kd1 {[%emt 0:00:43]} Bg3 {[%emt 0:00:09]} 58. Kd2 {[%emt 0:00:03]} Ke4 {[%emt 0:00:13]} 59. Ra3 {[%emt 0:00:50]} Bf2 {[%emt 0:00:08]} 60. Ra4+ {[%emt 0:00:38]} Kf3 {[%emt 0:00:02]} 61. Ra3+ {[%emt 0:00:28]} Kg4 {[%emt 0:00:36]} 62. Ra8 {[%emt 0:00:31]} h3 {[%emt 0:00:13]} 63. Rh8 {[%emt 0:00:11]} Nh5 {[%emt 0:01:14]} 64. Rg8+ {[%emt 0:00:51]} Kh4 {[%emt 0:00:10]} 0-1

[Event "New York Summer GM-B 2022"]
[Site "New York"]
[Date "2022.07.09"]
[Round "4.1"]
[White "Wang, Qibiao"]
[Black "Tiglon, Bryce"]
[Result "1/2-1/2"]
[ECO "C47"]
[WhiteElo "2365"]
[BlackElo "2391"]
[Annotator "RC"]
[PlyCount "42"]
[EventDate "2022.07.08"]
[EventType "tourn"]
[EventCountry "USA"]
[SourceTitle "playchess.com"]
[Source "ChessBase"]
[SourceQuality "1"]
[TimeControl "5400+30"]

1. e4 {[%emt 0:00:03]} e5 {[%emt 0:06:35]} 2. Nf3 {[%emt 0:00:06]} Nc6 {[%emt 0:00:02]} 3. Nc3 {[%emt 0:00:05]} Nf6 {[%emt 0:00:03]} 4. d4 {[%emt 0:00:04]} exd4 {[%emt 0:00:05]} 5. Nxd4 {[%emt 0:00:04]} Bb4 {[%emt 0:00:39]} 6. Nxc6 {[%emt 0:00:06]} bxc6 {[%emt 0:00:03]} 7. Bd3 {[%emt 0:00:05]} d5 {[%emt 0:00:18]} 8. exd5 {[%emt 0:00:05]} O-O {[%emt 0:00:05]} 9. O-O {[%emt 0:00:05]} cxd5 {[%emt 0:00:04]} 10. h3 {[%emt 0:00:07]} c6 {[%emt 0:01:01]} 11. Qf3 {[%emt 0:00:05]} Re8 {[%emt 0:00:09]} 12. Bf4 {[%emt 0:00:12]} a5 {[%emt 0:00:48]} 13. Rfd1 {[%emt 0:02:30]} h6 {[%emt 0:04:07]} 14. Ne2 {[%emt 0:02:45]} Bd6 {[%emt 0:17:01]} 15. c4 {[%emt 0:04:52]} Be6 {[%emt 0:01:27]} 16. Nd4 {[%emt 0:02:05]} Bxf4 {[%emt 0:01:03]} 17. Qxf4 {[%emt 0:00:13]} Qb6 {[%emt 0:00:57]} 18. b3 {[%emt 0:13:09]} a4 {[%emt 0:09:45]} 19. Nxe6 {[%emt 0:05:14]} Rxe6 {[%emt 0:00:53]} 20. cxd5 {[%emt 0:12:36]} Nxd5 {[%emt 0:01:45]} 21. Qd2 {[%emt 0:01:00]} axb3 {[%emt 0:10:11]} 1/2-1/2

[Event "New York Summer GM-B 2022"]
[Site "New York"]
[Date "2022.07.09"]
[Round "4.3"]
[White "Shmeliov, Denis"]
[Black "Jacobson, Aaron"]
[Result "0-1"]
[ECO "D37"]
[WhiteElo "2436"]
[BlackElo "2305"]
[Annotator "RC"]
[PlyCount "62"]
[EventDate "2022.07.08"]
[EventType "tourn"]
[EventCountry "USA"]
[SourceTitle "playchess.com"]
[Source "ChessBase"]
[SourceQuality "1"]
[TimeControl "5400+30"]

1. d4 {[%emt 0:00:03]} d5 {[%emt 0:02:03]} 2. c4 {[%emt 0:00:18]} e6 {[%emt 0:00:03]} 3. Nf3 {[%emt 0:00:21]} Nf6 {[%emt 0:00:04]} 4. Nc3 {[%emt 0:00:06]} h6 {[%emt 0:00:04]} 5. g3 {[%emt 0:00:47]} Nc6 {[%emt 0:00:20]} 6. Bg2 {[%emt 0:02:01]} Bd6 {[%emt 0:00:04]} 7. O-O {[%emt 0:02:09]} O-O {[%emt 0:00:04]} 8. a3 {[%emt 0:06:53]} dxc4 {[%emt 0:02:24]} 9. Qa4 {[%emt 0:00:30]} e5 {[%emt 0:01:13]} 10. Qxc4 {[%emt 0:02:26]} Nxd4 {[%emt 0:07:38]} 11. Nxd4 {[%emt 0:00:25]} exd4 {[%emt 0:00:05]} 12. Qxd4 {[%emt 0:00:34]} Qe7 {[%emt 0:02:36]} 13. h3 {[%emt 0:07:17]} c6 {[%emt 0:19:10]} 14. e4 {[%emt 0:10:17]} Bc5 {[%emt 0:14:12]} 15. Qa4 {[%emt 0:07:39]} Rd8 {[%emt 0:04:51]} 16. Qc2 {[%emt 0:07:51]} Be6 {[%emt 0:01:55]} 17. Re1 {[%emt 0:10:46]} Nd7 {[%emt 0:06:06]} 18. Bf4 {[%emt 0:05:17]} f6 {[%emt 0:05:45]} 19. Be3 {[%emt 0:12:48]} Qf7 {[%emt 0:02:30]} 20. Bf1 {[%emt 0:07:08]} Bxe3 {[%emt 0:05:11]} 21. Rxe3 {[%emt 0:00:06]} Bb3 {[%emt 0:00:30]} 22. Qe2 {[%emt 0:04:14]} Ne5 {[%emt 0:03:29]} 23. Rc1 {[%emt 0:00:55]} Rd7 {[%emt 0:06:57]} 24. Nb1 {[%emt 0:01:10]} Rad8 {[%emt 0:09:06]} 25. f4 {[%emt 0:02:48]} Nd3 {[%emt 0:04:41]} 26. Rc3 {[%emt 0:00:37]} Ba2 {[%emt 0:01:20]} 27. Rcxd3 {[%emt 0:03:07]} Bxb1 {[%emt 0:00:05]} 28. Rxd7 {[%emt 0:00:28]} Qxd7 {[%emt 0:00:23]} 29. e5 {[%emt 0:01:00]} fxe5 {[%emt 0:00:18]} 30. Rxe5 {[%emt 0:00:10]} Bd3 {[%emt 0:00:51]} 31. Qh5 {[%emt 0:04:12]} Qd4+ {[%emt 0:00:39]} 0-1

[Event "New York Summer GM-B 2022"]
[Site "New York"]
[Date "2022.07.09"]
[Round "4.4"]
[White "Zeltsan, Joseph"]
[Black "Griffith, Kyron"]
[Result "1/2-1/2"]
[ECO "B12"]
[WhiteElo "2337"]
[BlackElo "2357"]
[Annotator "RC"]
[PlyCount "90"]
[EventDate "2022.07.08"]
[EventType "tourn"]
[EventCountry "USA"]
[SourceTitle "playchess.com"]
[Source "ChessBase"]
[SourceQuality "1"]
[TimeControl "5400+30"]

1. e4 {[%emt 0:00:01]} c6 {[%emt 0:00:11]} 2. d4 {[%emt 0:00:02]} d5 {[%emt 0:00:06]} 3. e5 {[%emt 0:00:06]} Bf5 {[%emt 0:00:05]} 4. h4 {[%emt 0:00:02]} h6 {[%emt 0:01:00]} 5. Bd3 {[%emt 0:00:28]} Bxd3 {[%emt 0:00:28]} 6. Qxd3 {[%emt 0:00:02]} e6 {[%emt 0:00:07]} 7. Nf3 {[%emt 0:00:27]} Qa5+ {[%emt 0:00:13]} 8. Bd2 {[%emt 0:00:18]} Qa6 {[%emt 0:00:03]} 9. h5 {[%emt 0:00:17]} Qxd3 {[%emt 0:07:29]} 10. cxd3 {[%emt 0:00:05]} c5 {[%emt 0:01:58]} 11. Nc3 {[%emt 0:03:07]} Nc6 {[%emt 0:01:23]} 12. Nb5 {[%emt 0:04:36]} Kd7 {[%emt 0:06:32]} 13. dxc5 {[%emt 0:01:13]} Bxc5 {[%emt 0:00:08]} 14. Rc1 {[%emt 0:00:28]} Be7 {[%emt 0:01:26]} 15. Ke2 {[%emt 0:03:42]} a6 {[%emt 0:02:18]} 16. Nbd4 {[%emt 0:01:51]} Nxd4+ {[%emt 0:08:28]} 17. Nxd4 {[%emt 0:00:03]} Bd8 {[%emt 0:00:25]} 18. Rc3 {[%emt 0:34:58]} Ne7 {[%emt 0:06:56]} 19. Rhc1 {[%emt 0:10:54]} Rc8 {[%emt 0:03:16]} 20. Rxc8 {[%emt 0:07:27]} Nxc8 {[%emt 0:00:12]} 21. Nb3 {[%emt 0:00:12]} b6 {[%emt 0:03:15]} 22. Nd4 {[%emt 0:02:57]} Na7 {[%emt 0:02:05]} 23. Bb4 {[%emt 0:04:10]} Bc7 {[%emt 0:10:09]} 24. f4 {[%emt 0:00:27]} Rc8 {[%emt 0:06:45]} 25. g4 {[%emt 0:00:54]} Ke8 {[%emt 0:08:22]} 26. Rg1 {[%emt 0:07:59]} Bd8 {[%emt 0:07:11]} 27. g5 {[%emt 0:01:20]} Be7 {[%emt 0:00:01]} 28. Bxe7 {[%emt 0:03:46]} Kxe7 {[%emt 0:00:07]} 29. f5 {[%emt 0:00:01]} hxg5 {[%emt 0:03:19]} 30. Rxg5 {[%emt 0:02:26]} Nc6 {[%emt 0:00:22]} 31. Nf3 {[%emt 0:06:25]} exf5 {[%emt 0:01:42]} 32. Rxg7 {[%emt 0:00:37]} Nxe5 {[%emt 0:07:07]} 33. Nxe5 {[%emt 0:00:37]} Kf6 {[%emt 0:00:01]} 34. h6 {[%emt 0:00:47]} Kxe5 {[%emt 0:00:04]} 35. h7 {[%emt 0:00:55]} Rc2+ {[%emt 0:00:12]} 36. Ke3 {[%emt 0:01:27]} Rh2 {[%emt 0:00:13]} 37. Rxf7 {[%emt 0:00:03]} Rh3+ {[%emt 0:00:52]} 38. Kd2 {[%emt 0:01:57]} Kd4 {[%emt 0:00:13]} 39. Kc2 {[%emt 0:00:22]} Rh2+ {[%emt 0:01:39]} 40. Kb3 {[%emt 0:00:02]} Ke5 {[%emt 0:00:25]} 41. Kc3 {[%emt 0:00:59]} d4+ {[%emt 0:05:27]} 42. Kc4 {[%emt 0:00:27]} Rc2+ {[%emt 0:00:13]} 43. Kb3 {[%emt 0:00:04]} Rh2 {[%emt 0:00:31]} 44. Kc4 {[%emt 0:00:05]} Rc2+ {[%emt 0:03:20]} 45. Kb3 {[%emt 0:00:02]} Rh2 {[%emt 0:00:51]} 1/2-1/2

[Event "New York Summer GM-B 2022"]
[Site "New York"]
[Date "2022.07.09"]
[Round "4.5"]
[White "Maiti, Milind"]
[Black "Lenderman, Aleksandr"]
[Result "1/2-1/2"]
[ECO "A84"]
[WhiteElo "2316"]
[BlackElo "2572"]
[Annotator "TA"]
[PlyCount "50"]
[EventDate "2022.07.08"]
[EventType "tourn"]
[EventCountry "USA"]
[SourceTitle "playchess.com"]
[Source "ChessBase"]
[SourceQuality "1"]
[TimeControl "5400+30"]

{[%evp 9,50,34,52,30,41,28,37,16,49,23,36,12,50,33,58,58,54,61,60,60,54,61,65,45,50,40,52,30,66,30,58,31,41,41,32,31,41,41,45,41,41,41,41]} 1. d4 {[%emt 0:00:03]} e6 {[%emt 0:04:46]} 2. c4 {[%emt 0:00:08]} f5 {[%emt 0:00:08]} 3. Nf3 {[%emt 0:01:21]} Nf6 {[%emt 0:00:19]} 4. e3 {[%emt 0:03:45]} d5 {[%emt 0:07:17]} 5. Bd3 {[%emt 0:02:03]} Bb4+ {[%emt 0:01:41]} 6. Bd2 {[%emt 0:06:25] [#] A84: Dutch Defence: 2 c4 Miscellaneous.} Bd6 $146 {[%emt 0:00:31]} ({Predecessor:} 6... Bxd2+ 7. Nfxd2 b6 8. O-O Nbd7 9. cxd5 Nxd5 10. Nc3 Nxc3 11. bxc3 O-O 12. Qb3 Qf6 {1-0 (39) Fernandez Madrid,C (2166)-Villa Labrada,X Barcelona 2016}) 7. O-O {[%emt 0:04:22]} c6 {[%emt 0:03:32]} 8. b4 {[%emt 0:09:13]} a6 {[%emt 0:03:27]} 9. a3 {[%emt 0:08:00]} O-O {[%emt 0:01:33]} 10. Ne5 {[%emt 0:12:05]} Ne4 {[%emt 0:07:41][%cal Oa6a5]} 11. f4 {[%emt 0:04:04][%cal Bf2f4,Bf4e5][%mdl 32]} Bd7 {[%emt 0:02:49]} 12. Nc3 {[%emt 0:02:43]} Be8 {[%emt 0:00:15]} 13. Nxe4 {[%emt 0:04:43]} fxe4 {[%emt 0:01:22]} 14. Be2 {[%emt 0:00:19]} Nd7 {[%emt 0:00:44]} 15. a4 {[%emt 0:06:57]} Nxe5 {[%emt 0:05:32]} 16. fxe5 {[%emt 0:02:06]} Rxf1+ {[%emt 0:01:24]} 17. Bxf1 {[%emt 0:01:53]} Bf8 {[%emt 0:00:27]} 18. c5 {[%emt 0:06:16]} (18. Qg4 $5 {[%cal Rg4e6]}) 18... Bd7 {[%emt 0:04:47]} 19. Rb1 {[%emt 0:02:37]} Qe8 {[%emt 0:00:29]} 20. Qb3 {[%emt 0:02:06] White is slightly better.} h5 {[%emt 0:00:13]} 21. Be2 {[%emt 0:02:47]} Qg6 {[%emt 0:01:49]} 22. Qd1 {[%emt 0:06:34]} h4 {[%emt 0:00:42]} 23. Bh5 {[%emt 0:02:28]} Qg5 {[%emt 0:00:49]} 24. Bg4 {[%emt 0:01:53]} Be7 {[%emt 0:00:25]} 25. h3 {[%emt 0:01:24]} Rf8 {[%emt 0:00:40] Weighted Error Value: White=0.12 (very precise) /Black=0.13 (very precise)} 1/2-1/2

[Event "New York Summer GM-B 2022"]
[Site "New York"]
[Date "2022.07.10"]
[Round "5.2"]
[White "Griffith, Kyron"]
[Black "Maiti, Milind"]
[Result "1/2-1/2"]
[ECO "C42"]
[WhiteElo "2357"]
[BlackElo "2316"]
[Annotator "RC"]
[PlyCount "67"]
[EventDate "2022.07.08"]
[EventType "tourn"]
[EventCountry "USA"]
[SourceTitle "playchess.com"]
[Source "ChessBase"]
[SourceQuality "1"]
[TimeControl "5400+30"]

1. e4 {[%emt 0:02:00]} e5 {[%emt 0:00:07]} 2. Nf3 {[%emt 0:00:08]} Nf6 {[%emt 0:00:06]} 3. Nxe5 {[%emt 0:00:23]} d6 {[%emt 0:00:07]} 4. Nf3 {[%emt 0:00:05]} Nxe4 {[%emt 0:00:06]} 5. d4 {[%emt 0:00:07]} d5 {[%emt 0:00:07]} 6. Bd3 {[%emt 0:00:06]} Bd6 {[%emt 0:00:07]} 7. O-O {[%emt 0:00:05]} O-O {[%emt 0:00:07]} 8. c4 {[%emt 0:00:06]} c6 {[%emt 0:00:09]} 9. Qc2 {[%emt 0:00:18]} Na6 {[%emt 0:03:37]} 10. a3 {[%emt 0:00:31]} Bg4 {[%emt 0:01:06]} 11. Ne5 {[%emt 0:00:07]} Bf5 {[%emt 0:01:04]} 12. b4 {[%emt 0:01:04]} Nc7 {[%emt 0:01:50]} 13. f3 {[%emt 0:01:43]} Bg6 {[%emt 0:01:43]} 14. Be3 {[%emt 0:00:28]} Bxe5 {[%emt 0:24:19]} 15. dxe5 {[%emt 0:00:51]} Ng5 {[%emt 0:00:26]} 16. f4 {[%emt 0:07:56]} Bxd3 {[%emt 0:01:54]} 17. Qxd3 {[%emt 0:00:05]} Ne4 {[%emt 0:02:33]} 18. Nc3 {[%emt 0:02:03]} Nxc3 {[%emt 0:11:07]} 19. Qxc3 {[%emt 0:00:10]} dxc4 {[%emt 0:03:53]} 20. Qxc4 {[%emt 0:00:02]} Qd5 {[%emt 0:07:10]} 21. Qc2 {[%emt 0:06:50]} f6 {[%emt 0:08:44]} 22. Bc5 {[%emt 0:05:58]} Rfe8 {[%emt 0:01:44]} 23. exf6 {[%emt 0:01:14]} gxf6 {[%emt 0:00:15]} 24. Rad1 {[%emt 0:03:51]} Qf7 {[%emt 0:00:56]} 25. Rd3 {[%emt 0:08:07]} a6 {[%emt 0:04:08]} 26. a4 {[%emt 0:06:25]} Kh8 {[%emt 0:07:31]} 27. Qd2 {[%emt 0:03:51]} Nd5 {[%emt 0:01:49]} 28. b5 {[%emt 0:05:55]} axb5 {[%emt 0:01:38]} 29. axb5 {[%emt 0:00:01]} Re4 {[%emt 0:02:07]} 30. Bd4 {[%emt 0:06:42]} Rae8 {[%emt 0:02:11]} 31. bxc6 {[%emt 0:02:28]} bxc6 {[%emt 0:00:32]} 32. Rg3 {[%emt 0:04:28]} Qe7 {[%emt 0:04:12]} 33. h3 {[%emt 0:10:34]} Re1 {[%emt 0:01:36]} 34. Rgf3 {[%emt 0:03:59]} 1/2-1/2

[Event "New York Summer GM-B 2022"]
[Site "New York"]
[Date "2022.07.10"]
[Round "5.3"]
[White "Jacobson, Aaron"]
[Black "Zeltsan, Joseph"]
[Result "0-1"]
[ECO "B96"]
[WhiteElo "2305"]
[BlackElo "2337"]
[Annotator "RC"]
[PlyCount "56"]
[EventDate "2022.07.08"]
[EventType "tourn"]
[EventCountry "USA"]
[SourceTitle "playchess.com"]
[Source "ChessBase"]
[SourceQuality "1"]
[TimeControl "5400+30"]

1. e4 {[%emt 0:10:41]} c5 {[%emt 0:00:05]} 2. Nf3 {[%emt 0:00:03]} d6 {[%emt 0:00:04]} 3. d4 {[%emt 0:00:03]} cxd4 {[%emt 0:00:04]} 4. Nxd4 {[%emt 0:00:04]} Nf6 {[%emt 0:00:03]} 5. Nc3 {[%emt 0:00:05]} a6 {[%emt 0:00:01]} 6. Bg5 {[%emt 0:00:12]} e6 {[%emt 0:00:05]} 7. f4 {[%emt 0:00:02]} Nbd7 {[%emt 0:00:05]} 8. Qe2 {[%emt 0:02:09]} Qc7 {[%emt 0:00:09]} 9. O-O-O {[%emt 0:00:03]} Be7 {[%emt 0:01:35]} 10. g4 {[%emt 0:00:19]} b5 {[%emt 0:00:05]} 11. a3 {[%emt 0:00:06]} Rb8 {[%emt 0:00:08]} 12. Bg2 {[%emt 0:02:28]} h6 {[%emt 0:31:40]} 13. Bh4 {[%emt 0:03:56]} b4 {[%emt 0:00:17]} 14. axb4 {[%emt 0:00:11]} Rxb4 {[%emt 0:00:03]} 15. Bg3 {[%emt 0:28:30]} Qb6 {[%emt 0:03:04]} 16. Nb3 {[%emt 0:07:25]} Bb7 {[%emt 0:05:28]} 17. Na2 {[%emt 0:08:59]} Rxe4 {[%emt 0:01:35]} 18. Bxe4 {[%emt 0:00:09]} Nxe4 {[%emt 0:00:08]} 19. Be1 {[%emt 0:05:42]} O-O {[%emt 0:07:36]} 20. Rf1 {[%emt 0:02:11]} a5 {[%emt 0:11:17]} 21. Bxa5 {[%emt 0:01:15]} Qa7 {[%emt 0:03:42]} 22. Qe1 {[%emt 0:13:25]} Ra8 {[%emt 0:06:59]} 23. Nc3 {[%emt 0:01:15]} Nec5 {[%emt 0:00:57]} 24. Bb4 {[%emt 0:02:19]} d5 {[%emt 0:13:44]} 25. Nxc5 {[%emt 0:01:53]} Nxc5 {[%emt 0:00:25]} 26. Ba3 {[%emt 0:00:59]} Qb6 {[%emt 0:01:02]} 27. Qd2 {[%emt 0:06:31]} Rxa3 {[%emt 0:00:31]} 28. bxa3 {[%emt 0:00:15]} Ne4 {[%emt 0:00:08]} 0-1

[Event "New York Summer GM-B 2022"]
[Site "New York"]
[Date "2022.07.10"]
[Round "5.4"]
[White "Paragua, Mark"]
[Black "Shmeliov, Denis"]
[Result "1/2-1/2"]
[ECO "D38"]
[WhiteElo "2461"]
[BlackElo "2436"]
[Annotator "RC"]
[PlyCount "84"]
[EventDate "2022.07.08"]
[EventType "tourn"]
[EventCountry "USA"]
[SourceTitle "playchess.com"]
[Source "ChessBase"]
[SourceQuality "1"]
[TimeControl "5400+30"]

1. d4 {[%emt 0:00:03]} Nf6 {[%emt 0:00:10]} 2. c4 {[%emt 0:00:10]} e6 {[%emt 0:00:09]} 3. Nf3 {[%emt 0:00:30]} d5 {[%emt 0:00:06]} 4. Nc3 {[%emt 0:00:20]} Bb4 {[%emt 0:00:28]} 5. cxd5 {[%emt 0:00:53]} exd5 {[%emt 0:00:08]} 6. Bg5 {[%emt 0:00:08]} h6 {[%emt 0:00:18]} 7. Bh4 {[%emt 0:00:13]} O-O {[%emt 0:00:17]} 8. e3 {[%emt 0:00:52]} Bf5 {[%emt 0:00:49]} 9. Qb3 {[%emt 0:01:05]} Bxc3+ {[%emt 0:01:16]} 10. Qxc3 {[%emt 0:01:01]} Nbd7 {[%emt 0:01:53]} 11. Be2 {[%emt 0:04:39]} Ne4 {[%emt 0:01:10]} 12. Qb3 {[%emt 0:09:17]} Ndf6 {[%emt 0:05:37]} 13. O-O {[%emt 0:24:24]} g5 {[%emt 0:03:23]} 14. Bg3 {[%emt 0:00:04]} Nxg3 {[%emt 0:03:14]} 15. fxg3 {[%emt 0:02:14]} Be6 {[%emt 0:13:56]} 16. Qxb7 {[%emt 0:13:45]} Rb8 {[%emt 0:08:14]} 17. Qxa7 {[%emt 0:00:13]} Rxb2 {[%emt 0:02:00]} 18. Bd3 {[%emt 0:00:12]} Qa8 {[%emt 0:05:36]} 19. Qxa8 {[%emt 0:20:15]} Rxa8 {[%emt 0:00:08]} 20. Rf2 {[%emt 0:00:32]} Rxf2 {[%emt 0:16:27]} 21. Kxf2 {[%emt 0:00:02]} Ra3 {[%emt 0:01:07]} 22. Ke2 {[%emt 0:05:00]} Ne4 {[%emt 0:02:53]} 23. Bxe4 {[%emt 0:00:35]} dxe4 {[%emt 0:00:05]} 24. Nd2 {[%emt 0:00:17]} f5 {[%emt 0:00:26]} 25. Rc1 {[%emt 0:05:00]} Rxa2 {[%emt 0:06:11]} 26. Rxc7 {[%emt 0:01:25]} Bf7 {[%emt 0:02:41]} 27. h3 {[%emt 0:03:07]} Bh5+ {[%emt 0:05:17]} 28. g4 {[%emt 0:00:04]} fxg4 {[%emt 0:00:40]} 29. hxg4 {[%emt 0:00:05]} Bxg4+ {[%emt 0:00:25]} 30. Ke1 {[%emt 0:00:06]} Ra1+ {[%emt 0:08:17]} 31. Kf2 {[%emt 0:00:58]} Ra2 {[%emt 0:00:04]} 32. Ke1 {[%emt 0:00:07]} Ra1+ {[%emt 0:00:03]} 33. Kf2 {[%emt 0:00:03]} Ra2 {[%emt 0:00:03]} 34. Kg3 {[%emt 0:00:04]} Rxd2 {[%emt 0:02:14]} 35. Kxg4 {[%emt 0:00:02]} Rxg2+ {[%emt 0:05:25]} 36. Kf5 {[%emt 0:00:01]} Rf2+ {[%emt 0:00:42]} 37. Kg6 {[%emt 0:06:52]} Kf8 {[%emt 0:01:12]} 38. Rc8+ {[%emt 0:04:15]} Ke7 {[%emt 0:00:13]} 39. Kxh6 {[%emt 0:00:04]} g4 {[%emt 0:04:44]} 40. Rg8 {[%emt 0:00:59]} Rf3 {[%emt 0:00:38]} 41. Rxg4 {[%emt 0:00:28]} Rxe3 {[%emt 0:00:04]} 42. Kg5 {[%emt 0:00:17]} Kd6 {[%emt 0:00:57]} 1/2-1/2

[Event "New York Summer GM-B 2022"]
[Site "New York"]
[Date "2022.07.10"]
[Round "6.1"]
[White "Wang, Qibiao"]
[Black "Yudasin, Leonid"]
[Result "1/2-1/2"]
[ECO "B40"]
[WhiteElo "2365"]
[BlackElo "2396"]
[Annotator "RC"]
[PlyCount "51"]
[EventDate "2022.07.08"]
[EventType "tourn"]
[EventCountry "USA"]
[SourceTitle "playchess.com"]
[Source "ChessBase"]
[SourceQuality "1"]
[TimeControl "5400+30"]

1. e4 {[%emt 0:00:02]} c5 {[%emt 0:00:20]} 2. Nf3 {[%emt 0:00:03]} e6 {[%emt 0:00:07]} 3. b3 {[%emt 0:00:16]} b6 {[%emt 0:00:35]} 4. Bb2 {[%emt 0:00:05]} Bb7 {[%emt 0:00:07]} 5. Nc3 {[%emt 0:00:02]} Nf6 {[%emt 0:07:00]} 6. e5 {[%emt 0:00:16]} Ne4 {[%emt 0:06:14]} 7. Nxe4 {[%emt 0:02:02]} Bxe4 {[%emt 0:00:04]} 8. Qe2 {[%emt 0:00:05]} Bb7 {[%emt 0:02:05]} 9. h4 {[%emt 0:00:45]} Nc6 {[%emt 0:01:40]} 10. h5 {[%emt 0:00:07]} h6 {[%emt 0:01:32]} 11. Rh3 {[%emt 0:02:00]} Qc7 {[%emt 0:08:16]} 12. O-O-O {[%emt 0:04:27]} O-O-O {[%emt 0:08:12]} 13. Kb1 {[%emt 0:07:23]} d5 {[%emt 0:07:05]} 14. d4 {[%emt 0:17:07]} c4 {[%emt 0:03:54]} 15. bxc4 {[%emt 0:15:31]} Ba6 {[%emt 0:00:35]} 16. Nd2 {[%emt 0:00:16]} Na5 {[%emt 0:01:27]} 17. Qg4 {[%emt 0:01:29]} dxc4 {[%emt 0:03:56]} 18. Ne4 {[%emt 0:00:58]} Kb8 {[%emt 0:01:52]} 19. Ba3 {[%emt 0:02:03]} Bb7 {[%emt 0:11:29]} 20. Bd6 {[%emt 0:02:04]} Bxd6 {[%emt 0:00:14]} 21. Nxd6 {[%emt 0:00:03]} Rhg8 {[%emt 0:00:56]} 22. Be2 {[%emt 0:04:22]} Rd7 {[%emt 0:09:23]} 23. Bf3 {[%emt 0:05:17]} Bxf3 {[%emt 0:01:04]} 24. Rxf3 {[%emt 0:00:11]} Nb7 {[%emt 0:00:52]} 25. Ne4 {[%emt 0:01:05]} Rdd8 {[%emt 0:02:44]} 26. Qf4 {[%emt 0:35:31]} 1/2-1/2